[Event "FIDE World School-ch O-15 2025"]
[Site "Vrnjacka Banja"]
[Date "2025.03.27"]
[Round "8.4"]
[White "Urangoo, Gurvanbaatar"]
[Black "Yessengali, Adizhan"]
[Result "1/2-1/2"]
[Annotator "TA"]
[ECO "B15"]
[WhiteElo "1982"]
[BlackElo "1955"]
[PlyCount "222"]
[EventDate "2025.03.19"]
[EventType "swiss"]
[EventCountry "SRB"]
[SourceTitle "playchess.com"]
[Source "ChessBase"]
[SourceQuality "1"]
[TimeControl "5400+30"]

{[%evp 15,222,35,29,26,46,41,45,39,44,40,45,37,54,22,32,0,0,0,14,0,39,0,0,0,6,-121,-108,-109,-88,-81,0,-36,0,-70,-39,-47,0,0,16,0,136,156,183,0,1,0,0,0,0,-17,-21,-35,0,-33,-27,-62,-47,-36,-23,-37,0,0,0,0,9,9,37,8,53,33,53,0,37,-39,36,0,178,179,185,20,54,50,51,54,74,79,92,89,159,94,92,91,125,89,101,89,122,0,36,0,134,0,48,0,135,0,129,120,186,179,185,98,97,0,55,0,0,0,18,0,0,0,22,0,42,8,48,0,69,0,0,2,6,0,0,0,0,0,0,0,0,-41,-42,-40,-42,-40,-42,-44,-42,-50,-46,-46,-37,-71,-71,-71,-71,-71,-71,-71,-71,-71,-71,-71,-71,-71,-71,-71,-71,-71,-71,-71,-71,-71,-71,-71,-71,-72,-71,-72,-71,-71,-71,-71,-71,-71,-71,-71,-71,-71,-71,-71,-71,-71,-71,-71,-71,-71,-71,-71,-8,-8,-2,-2,-2,-2,0,0,0]} 1. e4 {[%emt 0:00:03]} c6 {[%emt 0:00:37]} 2. d4 {[%emt 0:00:02]} d5 {[%emt 0:00:05]} 3. Nc3 {[%emt 0:00:03]} dxe4 {[%emt 0:00:04]} 4. Nxe4 {[%emt 0:00:01]} Nf6 {[%emt 0:00:06]} 5. Nxf6+ {[%emt 0:00:02]} exf6 {[%emt 0:00:07]} 6. c3 {[%emt 0:00:02]} Bd6 {[%emt 0:00:04]} 7. Bd3 {[%emt 0:00:07]} O-O {[%emt 0:00:05]} 8. Ne2 {[%emt 0:00:05]} Re8 {[%emt 0:00:05]} 9. Qc2 {[%emt 0:00:17] B15: Caro-Kann: 3 Nc3: 3...g6 and 3...dxe4 4 Nxe4 Nf6 5 Nxf6+ exf6.} h5 {[%emt 0:00:05]} 10. O-O {[%emt 0:00:48]} h4 {[%emt 0:00:30]} 11. h3 {[%emt 0:00:53] White is slightly better.} Nd7 {[%emt 0:02:06]} 12. Be3 {[%emt 0:05:18]} Nf8 {[%emt 0:00:20]} 13. Rad1 {[%emt 0:02:02]} Bd7 {[%emt 0:11:47]} 14. c4 {[%emt 0:07:51]} Rc8 {[%emt 0:00:51]} 15. Qb3 $146 {[%emt 0:03:27]} (15. Nf4 Bb8 16. c5 Qc7 17. Rfe1 Ne6 18. g3 Ng5 19. Kg2 hxg3 20. fxg3 Bxh3+ 21. Kf2 {0-1 Jaracz,P (2463)-Tari,A (2656) Titled Tuesday intern op 11th Oct Late blitz 2022 (7)}) 15... b5 {[%emt 0:11:09]} 16. d5 {[%emt 0:07:12]} bxc4 {[%emt 0:32:13]} 17. Qxc4 {[%emt 0:01:10]} g5 {[%emt 0:00:04]} 18. dxc6 {[%emt 0:21:26]} Rxc6 {[%emt 0:06:17]} 19. Qd5 {[%emt 0:01:47][%cal Oe2d4]} Bb8 $1 {[%emt 0:05:04]} 20. Bc1 {[%emt 0:22:12]} (20. Bc4 $11 Ne6 21. Qxd7 Qxd7 22. Rxd7 Rxc4 23. Rfd1 (23. Bxa7 $2 Nf8 $19)) 20... Rd6 $17 {[%emt 0:12:53]} 21. Qb3 {[%emt 0:01:47]} Be6 {[%emt 0:01:07]} 22. Qc2 {[%emt 0:01:51]} Qa5 {[%emt 0:02:03] Black plays on the queen side and is better} (22... Bxa2 $17 23. Be3 Rd5) 23. Nc3 {[%emt 0:02:59]} Rc8 {[%emt 0:02:42]} 24. Rfe1 {[%emt 0:06:46]} (24. Qe2 $11) 24... Qc7 {[%emt 0:01:13][%cal Od6d3]} 25. f4 $1 {[%emt 0:01:13]} Rc6 {[%emt 0:02:02]} (25... Rd7 $15) 26. Be4 {[%emt 0:04:55]} Rc4 {[%emt 0:00:37]} 27. Qe2 {[%emt 0:02:05]} f5 {[%emt 0:01:14]} (27... gxf4 $11 28. Kh1 f5 29. Bxf5 (29. Bd5 Rb4 $14) 29... f3 (29... Bxf5 30. Nd5 $11) 30. gxf3 Bxf5) 28. Bd5 $16 {[%emt 0:02:32]} Rxf4 {[%emt 0:05:34][%cal Of4c4]} 29. Bxe6 {[%emt 0:01:57]} (29. Qh5 $1 $18 {[%cal Rh5g5]} Rb4 30. Qxg5+ Kh8 31. Qf6+ Kg8 32. Bh6 (32. Qg5+ Kh8 $16) 32... Qh2+ 33. Kf1 Rf4+ (33... Qh1+ $2 34. Kf2 $18) 34. Ke2 (34. Bxf4 Qxf4+ 35. Kg1 Qh2+ 36. Kf1 Qf4+ 37. Bf3 Bc4+ 38. Ne2 Be5 $11)) 29... fxe6 $11 {[%emt 0:00:03]} 30. Qh5 {[%emt 0:00:25] Active counter play!} Rc4 $36 {[%emt 0:01:02][%mdl 2048] ...Qh2+ is the strong threat. Black has some pressure.} 31. Qxg5+ {[%emt 0:00:33]} (31. Bxg5 $2 Qh2+ 32. Kf2 Bg3+ 33. Kf3 Bxe1 34. Rxe1 Qg3+ 35. Ke2 Rb4 $19 (35... Qxg2+ $2 36. Kd1 $19)) 31... Qg7 {[%emt 0:00:06]} 32. Qxg7+ {[%emt 0:01:44]} Kxg7 {[%emt 0:00:00]} 33. Rf1 {[%emt 0:01:03]} f4 {[%emt 0:00:37]} 34. Rfe1 {[%emt 0:01:53]} e5 {[%emt 0:00:32]} 35. Ne4 {[%emt 0:00:44]} Ne6 {[%emt 0:02:26]} 36. Rd7+ {[%emt 0:00:20]} Kg6 {[%emt 0:00:12]} 37. Bd2 {[%emt 0:00:16]} Rd8 {[%emt 0:01:41]} 38. Rxd8 {[%emt 0:00:23]} Nxd8 {[%emt 0:00:01]} 39. Bc3 {[%emt 0:00:35]} Kf5 {[%emt 0:00:39]} 40. Nd2 {[%emt 0:00:06]} Rc5 {[%emt 0:01:28]} 41. Nf3 {[%emt 0:00:16]} Nc6 {[%emt 0:00:36]} 42. Nxh4+ {[%emt 0:00:04]} Ke6 {[%emt 0:00:13]} 43. Ng6 {[%emt 0:00:14]} (43. Nf3 $14) 43... Rc4 {[%emt 0:00:30]} 44. Kf2 {[%emt 0:00:54]} (44. h4 $14) 44... Bd6 {[%emt 0:00:24]} (44... Kf6 $15 45. Nh4 Nb4) 45. g3 {[%emt 0:01:41]} Bc5+ $2 {[%emt 0:00:45]} (45... fxg3+ $11 {and Black has nothing to worry.} 46. Kxg3 Kf6) 46. Kf3 $18 {[%emt 0:00:01][%cal Rg6e5]} Kf5 {[%emt 0:00:08]} 47. Nh4+ {[%emt 0:00:58]} (47. Nxe5 Rxc3+ 48. bxc3 Nxe5+ 49. Rxe5+ Kxe5 50. gxf4+ Kf5 $19) (47. Nxf4 $1 $18 {Threatens to win with g4+.} Nd4+ (47... exf4 $2 48. g4+ Kg5 49. h4+ Kg6 50. Re6+ Kf7 51. Rxc6 $18) 48. Bxd4 Bxd4 49. g4+ Kf6 50. Nd5+ Ke6 51. Nc3) 47... Kf6 {[%emt 0:00:16]} 48. Ng2 {[%emt 0:00:29]} fxg3 {[%emt 0:00:48]} 49. Kxg3 {[%emt 0:00:13]} Bd4 {[%emt 0:00:11]} 50. Ne3 {[%emt 0:00:39]} Ra4 {[%emt 0:00:58]} 51. Ng4+ {[%emt 0:00:41]} Kf5 {[%emt 0:00:12]} (51... Ke6) 52. Bxd4 {[%emt 0:00:50]} (52. Rf1+ $142 Ke6 53. h4) 52... exd4 $16 {[%emt 0:00:06][%mdl 4096] Endgame KRN-KRN. White is a pawn up.} 53. a3 {[%emt 0:00:11]} Rc4 {[%emt 0:00:04]} 54. Re2 {[%emt 0:00:40] Inhibits Rc2.} Rc1 {[%emt 0:00:13]} 55. Nh6+ $1 {[%emt 0:00:31]} Kg5 {[%emt 0:01:01]} 56. Ng4 {[%emt 0:00:05]} (56. Re6 $1 $16) 56... Kf5 $1 $14 {[%emt 0:00:15]} 57. Nh6+ {[%emt 0:00:05]} (57. Kg2 $14) 57... Kg5 $1 $16 {[%emt 0:00:04]} 58. Ng4 {[%emt 0:00:06]} ({Only move:} 58. Re6 $1 $16) 58... Kf5 $1 $14 {[%emt 0:01:03]} 59. Nh6+ {[%emt 0:00:04]} (59. Kg2 $14) 59... Kg5 $1 $16 {[%emt 0:00:35] [#]} 60. Ng4 {[%emt 0:00:34]} (60. Re6 $1 $16) 60... Rg1+ {[%emt 0:00:12] [#]} (60... Kf5 $1 $11 {keeps the balance.}) 61. Kf3 $1 {[%emt 0:01:02]} Rd1 {[%emt 0:01:45]} (61... d3 $16 {keeps fighting.} 62. Rd2 Rh1) 62. Nf2 {[%emt 0:00:36]} Rf1 {[%emt 0:00:37]} 63. Kg2 {[%emt 0:00:20]} ({White should play} 63. Ke4 $18) 63... Rc1 {[%emt 0:00:16]} 64. Kf3 {[%emt 0:00:24]} (64. h4+ $16 Kxh4 65. Kf3) 64... Kf5 {[%emt 0:00:11]} (64... Rf1 $1 $11) 65. Kg3 {[%emt 0:01:17]} (65. h4 $14) 65... Rg1+ $11 {[%emt 0:00:17]} 66. Kh2 {[%emt 0:00:12]} Rb1 {[%emt 0:00:20]} 67. Nd3 {[%emt 0:00:34]} Rd1 {[%emt 0:00:27]} 68. Nf2 {[%emt 0:00:53]} Rb1 {[%emt 0:01:13]} 69. Nd3 {[%emt 0:00:30]} a5 {[%emt 0:00:30]} 70. Kg3 {[%emt 0:00:41]} a4 {[%emt 0:00:13]} 71. Rc2 {[%emt 0:00:40]} (71. h4 $14) 71... Nd8 {[%emt 0:00:43]} ({Better is} 71... Ke4 $1 $11) 72. Nf2 {[%emt 0:00:28]} (72. Nc5 $14) 72... Ne6 {[%emt 0:00:11]} 73. h4 {[%emt 0:00:32]} Re1 {[%emt 0:00:20]} 74. Kg2 {[%emt 0:00:37]} Nf4+ {[%emt 0:00:20]} 75. Kg3 {[%emt 0:00:29]} Re3+ {[%emt 0:00:26]} 76. Kh2 {[%emt 0:00:12]} d3 {[%emt 0:00:49]} 77. Rc5+ {[%emt 0:00:19]} Ke6 {[%emt 0:00:27]} 78. Rc4 {[%emt 0:00:28]} Rf3 {[%emt 0:00:37]} 79. Nxd3 {[%emt 0:01:01]} Rh3+ {[%emt 0:00:04]} (79... Nxd3 $2 80. Rxa4 Nxb2 81. Ra6+ Ke5 82. Kg2 $19) 80. Kg1 {[%emt 0:00:04]} Nxd3 {[%emt 0:00:04]} 81. Rxa4 {[%emt 0:00:13]} Nxb2 $15 {[%emt 0:00:21] KRN-KR} 82. Rb4 {[%emt 0:00:29]} Nd3 {[%emt 0:00:27]} 83. Kg2 {[%emt 0:00:45]} Re3 {[%emt 0:00:07]} 84. Rb8 {[%emt 0:00:21]} Nf4+ {[%emt 0:00:16]} 85. Kf2 {[%emt 0:00:13]} Rxa3 {[%emt 0:00:06]} 86. Rb5 {[%emt 0:00:52]} Nd5 {[%emt 0:00:11]} 87. Rb8 {[%emt 0:01:04]} Kf5 {[%emt 0:00:10]} 88. Rb5 {[%emt 0:00:11]} Ke4 {[%emt 0:00:06]} 89. Rb8 {[%emt 0:00:40]} Rf3+ {[%emt 0:00:07]} 90. Ke2 {[%emt 0:00:16]} Nf4+ {[%emt 0:00:07]} 91. Kd2 {[%emt 0:00:07]} Rd3+ {[%emt 0:00:09]} 92. Kc2 {[%emt 0:00:11]} Rh3 {[%emt 0:00:07]} 93. Rb4+ {[%emt 0:00:23]} Ke5 {[%emt 0:00:04]} 94. Rb5+ {[%emt 0:00:17]} Nd5 {[%emt 0:00:05]} 95. h5 {[%emt 0:00:42]} Kd4 {[%emt 0:00:05]} 96. Ra5 {[%emt 0:00:43]} Nb4+ {[%emt 0:00:23]} (96... Rxh5 97. Ra4+ Kc5 98. Kd2 Rh2+ 99. Kd3 Nb4+ 100. Ke4 Re2+ 101. Kf5 $19) 97. Kb2 {[%emt 0:00:37]} Kc4 {[%emt 0:00:03]} 98. Ra8 {[%emt 0:00:18]} Rh2+ {[%emt 0:00:17]} (98... Rxh5 99. Rc8+ Kd4 100. Kb3 $19) 99. Kc1 {[%emt 0:00:24]} Na2+ {[%emt 0:01:05]} (99... Rxh5 100. Kd2 Rh3 101. Rc8+ Kd4 102. Ke2 $17) 100. Kd1 {[%emt 0:00:28]} Nc3+ {[%emt 0:00:04]} 101. Kc1 {[%emt 0:00:33]} Ne2+ {[%emt 0:01:31]} 102. Kd1 {[%emt 0:00:27]} Nd4 {[%emt 0:00:17]} 103. h6 {[%emt 0:00:32]} Rxh6 {[%emt 0:00:42]} 104. Kd2 {[%emt 0:00:34]} Rh2+ {[%emt 0:01:05]} 105. Ke3 {[%emt 0:00:14]} Re2+ {[%emt 0:00:02]} 106. Kf4 {[%emt 0:00:28]} Rf2+ {[%emt 0:00:04]} 107. Ke5 {[%emt 0:00:49]} Rf5+ {[%emt 0:00:04]} (107... Nc6+ $17 108. Kd6 Rf6+ 109. Kd7 Kd4 110. Ra4+ Kd5) 108. Ke4 $11 {[%emt 0:00:22] The position is equal.} Rf6 {[%emt 0:02:58]} 109. Ra4+ {[%emt 0:00:37]} Kc5 {[%emt 0:00:06]} 110. Rxd4 {[%emt 0:00:19]} Rf4+ {[%emt 0:00:05]} 111. Kxf4 {[%emt 0:00:03] White threatens Ke5 and mate.} Kxd4 {[%emt 0:00:05] Weighted Error Value: White=0.33/Black=0.30  Loses game:     	---       	Black=1      Missed win:     	White=2     	---        Mistake:       	White=15    	Black=10     Inaccurate:     	White=10    	Black=13     OK:         	White=26    	Black=34     Best:        	White=8     	Black=6      Strong:       	White=3     	Black=5} 1/2-1/2

[Event "FIDE World School-ch O-15 2025"]
[Site "Vrnjacka Banja"]
[Date "2025.03.27"]
[Round "8.5"]
[White "Dandeniya, D D L N"]
[Black "Talgatov, Nazar"]
[Result "1-0"]
[Annotator "NA RC"]
[ECO "E11"]
[WhiteElo "1881"]
[BlackElo "2083"]
[PlyCount "99"]
[EventDate "2025.03.19"]
[EventType "swiss"]
[EventCountry "SRB"]
[SourceTitle "playchess.com"]
[Source "ChessBase"]
[SourceQuality "1"]
[TimeControl "5400+30"]

1. d4 {[%emt 0:00:06]} Nf6 {[%emt 0:01:18]} 2. c4 {[%emt 0:00:11]} e6 {[%emt 0:00:36]} 3. Nf3 {[%emt 0:00:12]} d5 {[%emt 0:00:53]} 4. g3 {[%emt 0:00:13]} Bb4+ {[%emt 0:01:30]} 5. Bd2 {[%emt 0:00:13]} Be7 {[%emt 0:00:26]} 6. Bg2 {[%emt 0:00:16]} O-O {[%emt 0:01:07]} 7. Qc2 {[%emt 0:00:12]} c6 {[%emt 0:01:08]} 8. h4 {[%emt 0:00:12]} Ne4 {[%emt 0:04:11]} 9. Nc3 {[%emt 0:09:10]} f5 {[%emt 0:00:45]} 10. Ne5 {[%emt 0:06:35]} Nd7 {[%emt 0:01:02]} 11. Nxd7 {[%emt 0:00:26]} Bxd7 {[%emt 0:03:11]} 12. Nxe4 {[%emt 0:10:40]} fxe4 {[%emt 0:08:42]} 13. f4 {[%emt 0:10:13]} b5 {[%emt 0:17:20]} 14. c5 {[%emt 0:01:38]} a5 {[%emt 0:01:40]} 15. a4 {[%emt 0:05:53]} Qc7 {[%emt 0:22:17]} 16. axb5 {[%emt 0:10:44]} cxb5 {[%emt 0:00:09]} 17. O-O {[%emt 0:00:16]} b4 {[%emt 0:05:10]} 18. b3 {[%emt 0:04:51]} Bb5 {[%emt 0:00:31]} 19. Be3 {[%emt 0:00:18]} Qc6 {[%emt 0:01:54]} 20. Qd2 {[%emt 0:00:26]} Bd8 {[%emt 0:01:20]} 21. Bh3 {[%emt 0:00:36]} Ra7 {[%emt 0:01:42]} 22. Kg2 {[%emt 0:00:49]} Raf7 {[%emt 0:01:50]} 23. Rf2 {[%emt 0:04:21]} Bc7 {[%emt 0:01:38]} 24. h5 {[%emt 0:01:13]} Qe8 {[%emt 0:03:56]} 25. Bg4 {[%emt 0:01:05]} Rf6 {[%emt 0:00:44]} 26. Rh1 {[%emt 0:00:41]} Bd7 {[%emt 0:00:52]} 27. Rhf1 {[%emt 0:06:17]} Qc8 {[%emt 0:01:38]} 28. Rc1 {[%emt 0:01:31]} Bc6 {[%emt 0:00:37]} 29. Rcf1 {[%emt 0:00:28]} Bd7 {[%emt 0:00:13]} 30. Rc1 {[%emt 0:00:06]} Bc6 {[%emt 0:02:06]} 31. Rcf1 {[%emt 0:01:06]} Qe8 {[%emt 0:01:17]} 32. Rh1 {[%emt 0:00:22]} Qb8 {[%emt 0:00:45]} 33. Ra1 {[%emt 0:02:35]} Be8 {[%emt 0:00:42]} 34. Qc2 {[%emt 0:01:56]} g6 {[%emt 0:01:14]} 35. h6 {[%emt 0:00:19]} g5 {[%emt 0:02:40]} 36. fxg5 {[%emt 0:00:39]} Rxf2+ {[%emt 0:01:04]} 37. Bxf2 {[%emt 0:00:06]} Kh8 {[%emt 0:08:14]} 38. Bxe6 {[%emt 0:01:03]} Rxf2+ {[%emt 0:01:24]} 39. Kxf2 {[%emt 0:00:01]} Bxg3+ {[%emt 0:00:01]} 40. Kg2 {[%emt 0:00:41]} Bh4 {[%emt 0:00:27]} 41. Rf1 {[%emt 0:01:36]} Bf7 {[%emt 0:00:54]} 42. Bd7 {[%emt 0:05:12]} Qg8 {[%emt 0:00:49]} 43. Kh1 {[%emt 0:08:57]} Bg3 {[%emt 0:00:48]} 44. Qd2 {[%emt 0:01:34]} Qg6 {[%emt 0:01:07]} 45. Bg4 {[%emt 0:00:08]} Bh4 {[%emt 0:00:32]} 46. Qf4 {[%emt 0:00:36]} Kg8 {[%emt 0:00:01]} 47. Qb8+ {[%emt 0:01:01]} Be8 {[%emt 0:00:01]} 48. Bd7 {[%emt 0:00:15]} Bxg5 {[%emt 0:00:12]} 49. Qxe8+ {[%emt 0:00:10]} Qxe8 {[%emt 0:00:04]} 50. Bxe8 {[%emt 0:00:04]} 1-0

[Event "FIDE World School-ch O-15 2025"]
[Site "Vrnjacka Banja"]
[Date "2025.03.27"]
[Round "8.6"]
[White "Harabor, David-Alexandru"]
[Black "Cirkovic, Vuk"]
[Result "1/2-1/2"]
[Annotator "NA RC"]
[ECO "E73"]
[WhiteElo "1989"]
[BlackElo "1981"]
[PlyCount "94"]
[EventDate "2025.03.19"]
[EventType "swiss"]
[EventCountry "SRB"]
[SourceTitle "playchess.com"]
[Source "ChessBase"]
[SourceQuality "1"]
[TimeControl "5400+30"]

1. d4 {[%emt 0:00:09]} Nf6 {[%emt 0:05:41]} 2. c4 {[%emt 0:00:08]} g6 {[%emt 0:00:28]} 3. Nc3 {[%emt 0:00:07]} Bg7 {[%emt 0:00:50]} 4. e4 {[%emt 0:00:10]} d6 {[%emt 0:00:42]} 5. Be2 {[%emt 0:01:31]} O-O {[%emt 0:00:59]} 6. h4 {[%emt 0:05:30]} e5 {[%emt 0:02:49]} 7. d5 {[%emt 0:01:26]} h5 {[%emt 0:02:50]} 8. Nf3 {[%emt 0:01:07]} a5 {[%emt 0:03:23]} 9. Ng5 {[%emt 0:02:52]} Na6 {[%emt 0:03:09]} 10. f3 {[%emt 0:02:04]} Nc5 {[%emt 0:02:18]} 11. Be3 {[%emt 0:01:27]} c6 {[%emt 0:07:20]} 12. Qd2 {[%emt 0:03:42]} cxd5 {[%emt 0:01:26]} 13. cxd5 {[%emt 0:06:13]} Bd7 {[%emt 0:00:45]} 14. O-O-O {[%emt 0:09:14]} Qe8 {[%emt 0:03:29]} 15. Kb1 {[%emt 0:13:39]} b5 {[%emt 0:02:48]} 16. Rc1 {[%emt 0:00:30]} Rc8 {[%emt 0:10:15]} 17. Nd1 {[%emt 0:02:57]} b4 {[%emt 0:02:29]} 18. Nf2 {[%emt 0:01:19]} Bb5 {[%emt 0:17:45]} 19. g4 {[%emt 0:06:12]} Qd7 {[%emt 0:05:01]} 20. Rhg1 {[%emt 0:06:51]} Rc7 {[%emt 0:02:21]} 21. f4 {[%emt 0:13:15]} Bxe2 {[%emt 0:04:34]} 22. Qxe2 {[%emt 0:00:05]} exf4 {[%emt 0:00:37]} 23. Bxf4 {[%emt 0:00:12]} Re8 {[%emt 0:01:09]} 24. gxh5 {[%emt 0:07:20]} Nxh5 {[%emt 0:00:43]} 25. Qf3 {[%emt 0:00:15]} Nxf4 {[%emt 0:04:16]} 26. Qxf4 {[%emt 0:00:21]} Rec8 {[%emt 0:06:11]} 27. h5 {[%emt 0:03:50]} Na4 {[%emt 0:05:40]} 28. hxg6 {[%emt 0:02:02]} Rxc1+ {[%emt 0:00:33]} 29. Rxc1 {[%emt 0:00:09]} Rxc1+ {[%emt 0:00:07]} 30. Qxc1 {[%emt 0:00:08]} fxg6 {[%emt 0:00:08]} 31. Ne6 {[%emt 0:00:47]} Bxb2 {[%emt 0:02:42]} 32. Qg5 {[%emt 0:00:14]} Bg7 {[%emt 0:00:16]} 33. Nd1 {[%emt 0:04:02]} Qe8 {[%emt 0:02:27]} 34. Kc2 {[%emt 0:05:23]} Qc8+ {[%emt 0:00:44]} 35. Kd2 {[%emt 0:00:15]} Qe8 {[%emt 0:00:29]} 36. Ne3 {[%emt 0:01:21]} Nc3 {[%emt 0:00:20]} 37. Kd3 {[%emt 0:01:19]} Na4 {[%emt 0:00:38]} 38. Nf5 {[%emt 0:00:46]} Nc5+ {[%emt 0:00:25]} 39. Nxc5 {[%emt 0:00:09]} gxf5 {[%emt 0:00:40]} 40. Ne6 {[%emt 0:00:46]} fxe4+ {[%emt 0:00:20]} 41. Kxe4 {[%emt 0:00:12]} Qd7 {[%emt 0:00:11]} 42. Nxg7 {[%emt 0:00:58]} Qxg7 {[%emt 0:00:08]} 43. Qd8+ {[%emt 0:00:05]} Qf8 {[%emt 0:00:22]} 44. Qxa5 {[%emt 0:00:49]} Qe8+ {[%emt 0:00:18]} 45. Kd3 {[%emt 0:00:09]} Qg6+ {[%emt 0:00:43]} 46. Kc4 {[%emt 0:00:51]} Qe4+ {[%emt 0:00:05]} 47. Kb3 {[%emt 0:00:17]} Qb1+ {[%emt 0:00:12]} 1/2-1/2

[Event "FIDE World School-ch O-15 2025"]
[Site "Vrnjacka Banja"]
[Date "2025.03.27"]
[Round "8.7"]
[White "Perera, K Damiru Damsara"]
[Black "Daksh Santosh Nathani"]
[Result "1-0"]
[Annotator "NA RC"]
[ECO "B08"]
[WhiteElo "1626"]
[BlackElo "1664"]
[PlyCount "177"]
[EventDate "2025.03.19"]
[EventType "swiss"]
[EventCountry "SRB"]
[SourceTitle "playchess.com"]
[Source "ChessBase"]
[SourceQuality "1"]
[TimeControl "5400+30"]

1. e4 {[%emt 0:05:17]} c6 {[%emt 0:00:05]} 2. d4 {[%emt 0:00:22]} d5 {[%emt 0:00:05]} 3. Nc3 {[%emt 0:00:05]} dxe4 {[%emt 0:00:04]} 4. Nxe4 {[%emt 0:00:09]} g6 {[%emt 0:00:04]} 5. c3 {[%emt 0:02:26]} Bg7 {[%emt 0:00:15]} 6. Bd3 {[%emt 0:02:41]} Nf6 {[%emt 0:00:06]} 7. Nf3 {[%emt 0:01:57]} O-O {[%emt 0:00:26]} 8. O-O {[%emt 0:00:47]} Nxe4 {[%emt 0:00:05]} 9. Bxe4 {[%emt 0:00:11]} Nd7 {[%emt 0:00:07]} 10. Re1 {[%emt 0:07:49]} Qc7 {[%emt 0:10:48]} 11. Bc2 {[%emt 0:29:46]} e5 {[%emt 0:04:44]} 12. dxe5 {[%emt 0:04:02]} Nxe5 {[%emt 0:01:38]} 13. Nxe5 {[%emt 0:12:52]} Bxe5 {[%emt 0:00:11]} 14. Bh6 {[%emt 0:02:36]} Bg7 {[%emt 0:08:45]} 15. Bxg7 {[%emt 0:01:21]} Kxg7 {[%emt 0:00:03]} 16. Qd4+ {[%emt 0:02:43]} Kg8 {[%emt 0:00:11]} 17. Bb3 {[%emt 0:01:17]} c5 {[%emt 0:13:13]} 18. Qe5 {[%emt 0:01:15]} Qxe5 {[%emt 0:07:13]} 19. Rxe5 {[%emt 0:00:18]} b6 {[%emt 0:06:39]} 20. Bd5 {[%emt 0:01:00]} Rb8 {[%emt 0:02:19]} 21. Re7 {[%emt 0:00:22]} a5 {[%emt 0:01:49]} 22. Rae1 {[%emt 0:00:48]} Kg7 {[%emt 0:01:29]} 23. Rc7 {[%emt 0:01:31]} Bf5 {[%emt 0:02:33]} 24. Ree7 {[%emt 0:01:19]} Rbe8 {[%emt 0:00:56]} 25. f3 {[%emt 0:06:56]} Rxe7 {[%emt 0:03:20]} 26. Rxe7 {[%emt 0:00:02]} Bc8 {[%emt 0:01:50]} 27. Rc7 {[%emt 0:00:50]} Kf6 {[%emt 0:01:00]} 28. Bxf7 {[%emt 0:01:07]} Rxf7 {[%emt 0:07:28]} 29. Rxc8 {[%emt 0:00:07]} Ke5 {[%emt 0:00:04]} 30. Rc6 {[%emt 0:01:53]} Rb7 {[%emt 0:00:08]} 31. Kf2 {[%emt 0:01:06]} Kd5 {[%emt 0:00:25]} 32. Rc8 {[%emt 0:00:17]} Kc4 {[%emt 0:01:04]} 33. Ke2 {[%emt 0:02:11]} Rd7 {[%emt 0:01:00]} 34. Ra8 {[%emt 0:01:23]} Rd5 {[%emt 0:04:42]} 35. Re8 {[%emt 0:00:52]} Rh5 {[%emt 0:04:33]} 36. h3 {[%emt 0:02:00]} b5 {[%emt 0:01:20]} 37. Re4+ {[%emt 0:00:25]} Kd5 {[%emt 0:00:01]} 38. Re7 {[%emt 0:00:35]} Rg5 {[%emt 0:02:34]} 39. g4 {[%emt 0:00:47]} Re5+ {[%emt 0:02:00]} 40. Rxe5+ {[%emt 0:00:12]} Kxe5 {[%emt 0:00:01]} 41. a4 {[%emt 0:03:45]} bxa4 {[%emt 0:01:53]} 42. Kd3 {[%emt 0:00:36]} Kf4 {[%emt 0:01:22]} 43. Kc4 {[%emt 0:00:06]} Kg3 {[%emt 0:00:02]} 44. Kxc5 {[%emt 0:03:14]} Kxh3 {[%emt 0:00:05]} 45. Kb5 {[%emt 0:01:01]} h5 {[%emt 0:00:03]} 46. gxh5 {[%emt 0:00:28]} gxh5 {[%emt 0:00:01]} 47. c4 {[%emt 0:00:11]} Kg3 {[%emt 0:00:10]} 48. c5 {[%emt 0:00:05]} h4 {[%emt 0:00:04]} 49. c6 {[%emt 0:00:03]} h3 {[%emt 0:00:02]} 50. c7 {[%emt 0:00:11]} h2 {[%emt 0:00:02]} 51. c8=Q {[%emt 0:00:25]} h1=Q {[%emt 0:00:03]} 52. Qc7+ {[%emt 0:01:38]} Kf2 {[%emt 0:00:37]} 53. Qc5+ {[%emt 0:00:10]} Ke2 {[%emt 0:00:18]} 54. Qc4+ {[%emt 0:00:22]} Kf2 {[%emt 0:01:05]} 55. Qd4+ {[%emt 0:00:22]} Ke2 {[%emt 0:01:32]} 56. Qe4+ {[%emt 0:00:25]} Kd2 {[%emt 0:00:01]} 57. Qd4+ {[%emt 0:00:54]} Ke2 {[%emt 0:00:24]} 58. f4 {[%emt 0:01:14]} Qh7 {[%emt 0:02:22]} 59. Kxa4 {[%emt 0:00:31]} Qc2+ {[%emt 0:01:04]} 60. Kxa5 {[%emt 0:00:11]} Qc7+ {[%emt 0:00:00]} 61. Kb4 {[%emt 0:00:22]} Qb7+ {[%emt 0:00:00]} 62. Kc3 {[%emt 0:00:10]} Qf3+ {[%emt 0:00:00]} 63. Kb4 {[%emt 0:00:33]} Qb7+ {[%emt 0:00:00]} 64. Kc5 {[%emt 0:00:08]} Qa7+ {[%emt 0:00:38]} 65. Kd5 {[%emt 0:00:19]} Qb7+ {[%emt 0:00:15]} 66. Ke5 {[%emt 0:00:30]} Qe7+ {[%emt 0:00:15]} 67. Kf5 {[%emt 0:00:16]} Qh7+ {[%emt 0:00:03]} 68. Kg5 {[%emt 0:00:42]} Qg8+ {[%emt 0:00:19]} 69. Kh6 {[%emt 0:00:52]} Qf8+ {[%emt 0:00:23]} 70. Kg6 {[%emt 0:00:30]} Qg8+ {[%emt 0:00:11]} 71. Qg7 {[%emt 0:00:20]} Qe8+ {[%emt 0:00:54]} 72. Qf7 {[%emt 0:00:19]} Qe4+ {[%emt 0:00:33]} 73. f5 {[%emt 0:00:42]} Qg4+ {[%emt 0:00:21]} 74. Kh7 {[%emt 0:00:20]} Qh4+ {[%emt 0:00:06]} 75. Kg8 {[%emt 0:00:17]} Qd8+ {[%emt 0:00:09]} 76. Kg7 {[%emt 0:00:16]} Qg5+ {[%emt 0:00:11]} 77. Kf8 {[%emt 0:00:12]} Qh6+ {[%emt 0:00:13]} 78. Qg7 {[%emt 0:00:52]} Qc6 {[%emt 0:00:20]} 79. Qe5+ {[%emt 0:00:24]} Kf3 {[%emt 0:00:07]} 80. f6 {[%emt 0:00:13]} Qc8+ {[%emt 0:00:11]} 81. Kf7 {[%emt 0:00:27]} Qd7+ {[%emt 0:00:07]} 82. Kg6 {[%emt 0:00:12]} Qg4+ {[%emt 0:00:07]} 83. Qg5 {[%emt 0:00:08]} Qc4 {[%emt 0:00:13]} 84. f7 {[%emt 0:00:18]} Ke4 {[%emt 0:01:03]} 85. f8=Q {[%emt 0:00:27]} Qc6+ {[%emt 0:00:33]} 86. Qgf6 {[%emt 0:00:14]} Qc2 {[%emt 0:00:26]} 87. Qf5+ {[%emt 0:00:05]} Kd4 {[%emt 0:00:06]} 88. Qxc2 {[%emt 0:00:29]} Kd5 {[%emt 0:00:08]} 89. Qd8+ {[%emt 0:00:10]} 1-0